[Event "Nové Hrady - Open"]
[Site "Nové Hrady, Czech Republic"]
[Date "2024.08.16"]
[Round "6.9"]
[White "Shivairo, Swegenyi Mark"]
[Black "Slabý, Matěj"]
[Result "0-1"]
[TimeControl "2x90min+30s"]
[WhiteFideId "23745029"]
[BlackFideId "23734876"]
[WhiteElo "1618"]
[BlackElo "2020"]

1. e4 {[%clk 01:30:59]} {[%emt 00:00:01]} d5 {[%clk 01:30:50]} {[%emt
00:00:10]} 2. exd5 {[%clk 01:31:08]} {[%emt 00:00:20]} Qxd5 {[%clk 01:31:13]}
{[%emt 00:00:08]} 3. Nc3 {[%clk 01:31:29]} {[%emt 00:00:09]} Qd6 {[%clk
01:31:35]} {[%emt 00:00:07]} 4. Nf3 {[%clk 01:30:41]} {[%emt 00:01:18]} Nf6
{[%clk 01:31:30]} {[%emt 00:00:35]} 5. d4 {[%clk 01:30:24]} {[%emt 00:00:47]}
c6 {[%clk 01:31:49]} {[%emt 00:00:11]} 6. Be3 {[%clk 01:29:29]} {[%emt
00:01:26]} Bg4 {[%clk 01:31:49]} {[%emt 00:00:29]} 7. Be2 {[%clk 01:28:59]}
{[%emt 00:01:00]} Nbd7 {[%clk 01:30:06]} {[%emt 00:02:13]} 8. O-O {[%clk
01:26:12]} {[%emt 00:03:18]} e6 {[%clk 01:30:11]} {[%emt 00:00:25]} 9. Ng5
{[%clk 01:22:18]} {[%emt 00:04:21]} Bxe2 {[%clk 01:25:05]} {[%emt 00:05:37]} 10.
Qxe2 {[%clk 01:22:17]} {[%emt 00:00:33]} Be7 {[%clk 01:22:12]} {[%emt
00:03:23]} 11. a3 {[%clk 01:16:51]} {[%emt 00:05:56]} O-O {[%clk 01:19:49]}
{[%emt 00:02:53]} 12. Rad1 {[%clk 01:09:29]} {[%emt 00:07:51]} h6 {[%clk
01:13:09]} {[%emt 00:07:10]} 13. Nf3 {[%clk 01:05:16]} {[%emt 00:04:43]} Qc7
{[%clk 01:09:23]} {[%emt 00:04:16]} 14. Rfe1 {[%clk 00:56:29]} {[%emt
00:09:18]} Rfe8 {[%clk 00:59:58]} {[%emt 00:09:54]} 15. Qd3 {[%clk 00:47:14]}
{[%emt 00:09:44]} b5 {[%clk 00:51:57]} {[%emt 00:08:33]} 16. Bd2 {[%clk
00:38:25]} {[%emt 00:09:17]} a5 {[%clk 00:49:53]} {[%emt 00:02:35]} 17. Ne2
{[%clk 00:32:23]} {[%emt 00:06:32]} Bd6 {[%clk 00:41:01]} {[%emt 00:09:23]} 18.
Ng3 {[%clk 00:25:47]} {[%emt 00:07:04]} b4 {[%clk 00:35:44]} {[%emt 00:05:48]}
19. a4 {[%clk 00:23:50]} {[%emt 00:02:27]} c5 {[%clk 00:35:57]} {[%emt
00:00:17]} 20. b3 {[%clk 00:20:28]} {[%emt 00:03:52]} Rac8 {[%clk 00:34:09]}
{[%emt 00:02:18]} 21. Rc1 {[%clk 00:16:12]} {[%emt 00:04:45]} c4 {[%clk
00:28:49]} {[%emt 00:05:52]} 22. Qxc4 {[%clk 00:11:20]} {[%emt 00:05:21]} Qxc4
{[%clk 00:28:54]} {[%emt 00:00:26]} 23. bxc4 {[%clk 00:11:42]} {[%emt
00:00:08]} Rxc4 {[%clk 00:29:13]} {[%emt 00:00:10]} 24. Ne4 {[%clk 00:07:33]}
{[%emt 00:04:38]} Nxe4 {[%clk 00:29:17]} {[%emt 00:00:27]} 25. Rxe4 {[%clk
00:07:51]} {[%emt 00:00:12]} Rec8 {[%clk 00:28:50]} {[%emt 00:00:58]} 26. Ne1
{[%clk 00:03:58]} {[%emt 00:04:22]} b3 {[%clk 00:28:45]} {[%emt 00:00:35]} 27.
c3 {[%clk 00:02:59]} {[%emt 00:01:29]} Rxa4 {[%clk 00:29:08]} {[%emt 00:00:07]}
28. Rb1 {[%clk 00:02:40]} {[%emt 00:00:49]} Ra2 {[%clk 00:29:29]} {[%emt
00:00:10]} 29. Nf3 {[%clk 00:02:01]} {[%emt 00:01:08]} a4 {[%clk 00:29:20]}
{[%emt 00:00:40]} 30. Ree1 {[%clk 00:01:30]} {[%emt 00:01:00]} Nb6 {[%clk
00:28:57]} {[%emt 00:00:53]} 31. Ra1 {[%clk 00:00:47]} {[%emt 00:01:14]} Rxa1
{[%clk 00:29:19]} {[%emt 00:00:08]} 32. Rxa1 {[%clk 00:01:15]} b2 {[%clk
00:29:42]} {[%emt 00:00:08]} 33. Rb1 {[%clk 00:01:01]} {[%emt 00:00:45]} a3
{[%clk 00:30:07]} {[%emt 00:00:05]} 34. Ne1 {[%emt 00:01:00]} 0-1

[Event "Nové Hrady - Open"]
[Site "Nové Hrady, Czech Republic"]
[Date "2024.08.16"]
[Round "6.10"]
[White "Schulz, Gerhard"]
[Black "Slabý, Martin"]
[Result "0-1"]
[TimeControl "2x90min+30s"]
[WhiteFideId "1634780"]
[BlackFideId "23713593"]
[WhiteElo "1804"]
[BlackElo "1569"]

1. d4 {[%clk 01:30:58]} Nf6 {[%clk 01:30:47]} {[%emt 00:00:14]} 2. Nc3 {[%clk
01:31:13]} {[%emt 00:00:15]} e6 {[%clk 01:29:38]} {[%emt 00:01:40]} 3. Bf4
{[%clk 01:30:54]} {[%emt 00:00:48]} Bb4 {[%clk 01:27:32]} {[%emt 00:02:36]} 4.
Qd3 {[%clk 01:26:47]} {[%emt 00:04:36]} Nd5 {[%clk 01:24:55]} {[%emt 00:03:06]}
5. Bd2 {[%clk 01:26:28]} {[%emt 00:00:50]} O-O {[%clk 01:21:28]} {[%emt
00:03:58]} 6. a3 {[%clk 01:26:45]} {[%emt 00:00:13]} Bxc3 {[%clk 01:16:53]}
{[%emt 00:05:06]} 7. bxc3 {[%clk 01:26:37]} {[%emt 00:00:38]} d6 {[%clk
01:14:45]} {[%emt 00:02:35]} 8. e4 {[%clk 01:26:41]} {[%emt 00:00:28]} Nf6
{[%clk 01:14:17]} {[%emt 00:00:57]} 9. Bg5 {[%clk 01:25:44]} {[%emt 00:01:28]}
Nbd7 {[%clk 01:13:44]} {[%emt 00:01:03]} 10. Nf3 {[%clk 01:24:42]} {[%emt
00:01:31]} e5 {[%clk 01:06:03]} {[%emt 00:08:12]} 11. Be2 {[%clk 01:24:48]}
{[%emt 00:00:23]} c5 {[%clk 01:03:14]} {[%emt 00:03:19]} 12. O-O {[%clk
01:24:16]} {[%emt 00:01:03]} b6 {[%clk 01:01:30]} {[%emt 00:02:12]} 13. Nd2
{[%clk 01:20:43]} {[%emt 00:04:04]} Qc7 {[%clk 01:00:35]} {[%emt 00:01:26]} 14.
h3 {[%clk 01:20:20]} {[%emt 00:00:52]} Bb7 {[%clk 00:59:30]} {[%emt 00:01:37]}
15. d5 {[%clk 01:18:22]} {[%emt 00:02:25]} a6 {[%clk 00:50:17]} {[%emt
00:09:44]} 16. c4 {[%clk 01:15:47]} {[%emt 00:03:06]} b5 {[%clk 00:47:55]}
{[%emt 00:02:52]} 17. Qg3 {[%clk 01:15:58]} {[%emt 00:00:18]} bxc4 {[%clk
00:41:22]} {[%emt 00:07:04]} 18. Bh6 {[%clk 01:16:09]} {[%emt 00:00:18]} g6
{[%clk 00:38:01]} {[%emt 00:03:52]} 19. Bxf8 {[%emt 00:00:10]} Rxf8 {[%emt
00:04:05]} 20. Bxc4 {[%clk 01:11:46]} {[%emt 00:00:38]} Nh5 {[%clk 00:37:32]}
{[%emt 00:00:58]} 21. Qh4 {[%clk 00:58:15]} {[%emt 00:14:01]} f5 {[%clk
00:34:43]} {[%emt 00:03:15]} 22. f3 {[%clk 00:53:53]} {[%emt 00:04:56]} f4
{[%clk 00:30:17]} {[%emt 00:04:56]} 23. Rf2 {[%clk 00:53:01]} {[%emt 00:01:22]}
Ndf6 {[%clk 00:29:03]} {[%emt 00:01:42]} 24. Nf1 {[%clk 00:53:03]} {[%emt
00:00:30]} h6 {[%clk 00:27:21]} {[%emt 00:02:07]} 25. g4 {[%clk 00:53:11]}
{[%emt 00:00:27]} g5 {[%clk 00:27:00]} {[%emt 00:00:51]} 26. Qxh5 {[%clk
00:49:41]} {[%emt 00:04:01]} Nxh5 {[%clk 00:26:40]} {[%emt 00:00:50]} 27. gxh5
{[%clk 00:50:09]} {[%emt 00:00:02]} Bc8 {[%clk 00:25:18]} {[%emt 00:01:50]} 28.
Rh2 {[%clk 00:49:30]} {[%emt 00:01:10]} Qe7 {[%clk 00:23:12]} {[%emt 00:02:35]}
29. Nd2 {[%clk 00:46:11]} {[%emt 00:03:50]} Kh8 {[%clk 00:20:29]} {[%emt
00:03:14]} 30. Bf1 {[%clk 00:46:22]} {[%emt 00:00:19]} Rg8 {[%clk 00:19:49]}
{[%emt 00:01:10]} 31. Nc4 {[%clk 00:44:43]} {[%emt 00:02:08]} Bd7 {[%clk
00:18:45]} {[%emt 00:01:32]} 32. a4 {[%clk 00:44:40]} {[%emt 00:00:35]} Be8
{[%clk 00:18:33]} {[%emt 00:00:40]} 33. Rb1 {[%clk 00:39:40]} {[%emt 00:05:32]}
Bxh5 {[%clk 00:18:01]} {[%emt 00:01:03]} 34. Kf2 {[%clk 00:39:37]} {[%emt
00:00:34]} Be8 {[%clk 00:17:11]} {[%emt 00:01:18]} 35. Na5 {[%clk 00:39:35]}
{[%emt 00:00:33]} Bxa4 {[%clk 00:15:57]} {[%emt 00:01:44]} 36. Rb7 {[%clk
00:39:28]} {[%emt 00:00:37]} Qd8 {[%clk 00:15:18]} {[%emt 00:01:00]} 37. Nc6
{[%clk 00:38:07]} {[%emt 00:02:00]} Bxc6 {[%clk 00:15:19]} {[%emt 00:00:29]} 38.
dxc6 {[%clk 00:38:34]} {[%emt 00:00:02]} Qc8 {[%clk 00:15:09]} {[%emt
00:00:33]} 39. Rb6 {[%clk 00:38:35]} {[%emt 00:00:36]} a5 {[%clk 00:13:55]}
{[%emt 00:01:42]} 40. Ba6 {[%clk 00:38:47]} {[%emt 00:00:20]} Qc7 {[%clk
00:13:37]} {[%emt 00:00:47]} 41. Rb2 {[%clk 00:36:27]} {[%emt 00:02:51]} Qxc6
{[%clk 00:13:33]} {[%emt 00:00:33]} 42. Bc4 {[%clk 00:36:21]} {[%emt 00:00:37]}
Rf8 {[%clk 00:13:10]} {[%emt 00:00:49]} 43. Bd5 {[%clk 00:36:44]} {[%emt
00:00:12]} Qa4 {[%clk 00:12:45]} {[%emt 00:00:47]} 44. c3 {[%clk 00:32:06]}
{[%emt 00:05:15]} Qa3 {[%clk 00:09:24]} {[%emt 00:03:46]} 45. Ra2 {[%clk
00:31:25]} {[%emt 00:01:17]} Qxc3 {[%clk 00:09:28]} {[%emt 00:00:25]} 46. Re2
{[%clk 00:28:58]} {[%emt 00:02:58]} Rb8 {[%clk 00:08:46]} {[%emt 00:01:10]} 47.
Rh1 {[%clk 00:29:11]} {[%emt 00:00:18]} Rb2 {[%clk 00:07:51]} {[%emt 00:01:23]}
48. Rhe1 {[%clk 00:28:01]} {[%emt 00:01:42]} Rxe2+ {[%clk 00:07:08]} {[%emt
00:01:12]} 49. Rxe2 {[%clk 00:28:03]} {[%emt 00:00:29]} a4 {[%clk 00:06:55]}
{[%emt 00:00:42]} 50. Ba2 {[%clk 00:22:44]} {[%emt 00:05:51]} a3 {[%clk
00:07:06]} {[%emt 00:00:18]} 51. Bb1 {[%clk 00:21:37]} {[%emt 00:01:37]} Qd4+
{[%clk 00:06:59]} {[%emt 00:00:37]} 52. Kg2 {[%clk 00:21:27]} {[%emt 00:00:40]}
Qd1 {[%clk 00:06:55]} {[%emt 00:00:28]} 53. Ra2 {[%clk 00:21:07]} {[%emt
00:00:58]} Qxb1 {[%clk 00:07:14]} {[%emt 00:00:10]} 0-1

[Event "Nové Hrady - Open"]
[Site "Nové Hrady, Czech Republic"]
[Date "2024.08.17"]
[Round "7.1"]
[White "Žilavý, Jan"]
[Black "Dudek, Vojtěch"]
[Result "1/2-1/2"]
[TimeControl "2x90min+30s"]
[WhiteFideId "350141"]
[BlackFideId "398780"]
[WhiteElo "2127"]
[BlackElo "2117"]

1. d4 {[%clk 01:30:56]} {[%emt 00:00:04]} Nf6 {[%clk 01:30:49]} {[%emt
00:00:11]} 2. c4 {[%clk 01:31:19]} {[%emt 00:00:07]} e6 {[%clk 01:31:11]}
{[%emt 00:00:08]} 3. Nc3 {[%clk 01:31:42]} {[%emt 00:00:07]} d5 {[%clk
01:31:36]} {[%emt 00:00:05]} 4. Nf3 {[%clk 01:31:57]} {[%emt 00:00:15]} Be7
{[%clk 01:31:00]} {[%emt 00:01:05]} 5. Bg5 {[%clk 01:32:07]} {[%emt 00:00:21]}
O-O {[%clk 01:30:43]} {[%emt 00:00:46]} 6. e3 {[%clk 01:32:13]} {[%emt
00:00:25]} b6 {[%clk 01:25:21]} {[%emt 00:05:52]} 7. Be2 {[%clk 01:31:04]}
{[%emt 00:01:39]} Bb7 {[%clk 01:25:19]} {[%emt 00:00:31]} 8. Bxf6 {[%clk
01:30:55]} {[%emt 00:00:41]} Bxf6 {[%clk 01:25:33]} {[%emt 00:00:15]} 9. cxd5
{[%clk 01:31:17]} {[%emt 00:00:08]} exd5 {[%clk 01:24:59]} {[%emt 00:01:04]} 10.
b4 {[%clk 01:31:23]} {[%emt 00:00:24]} c6 {[%clk 01:15:26]} {[%emt 00:10:02]}
11. O-O {[%clk 01:29:24]} {[%emt 00:02:29]} Nd7 {[%clk 01:13:23]} {[%emt
00:02:33]} 12. Qb3 {[%clk 01:26:00]} {[%emt 00:03:55]} Qe7 {[%clk 00:59:17]}
{[%emt 00:14:36]} 13. Rfc1 {[%clk 01:23:19]} {[%emt 00:03:10]} Qd6 {[%clk
00:58:29]} {[%emt 00:01:18]} 14. Ne1 {[%clk 01:19:43]} {[%emt 00:04:06]} Rfe8
{[%clk 00:50:40]} {[%emt 00:08:20]} 15. Bf3 {[%clk 01:18:36]} {[%emt 00:01:37]}
Nf8 {[%clk 00:46:53]} {[%emt 00:04:16]} 16. b5 {[%clk 01:15:59]} {[%emt
00:03:08]} Rad8 {[%clk 00:43:34]} {[%emt 00:03:49]} 17. bxc6 {[%clk 01:08:48]}
{[%emt 00:07:41]} Bxc6 {[%clk 00:43:43]} {[%emt 00:00:21]} 18. Nd3 {[%clk
01:08:59]} {[%emt 00:00:19]} Ne6 {[%clk 00:36:42]} {[%emt 00:07:32]} 19. Nb4
{[%clk 01:07:12]} {[%emt 00:02:16]} Ba8 {[%clk 00:22:56]} {[%emt 00:14:16]} 20.
Nbxd5 {[%clk 00:55:32]} {[%emt 00:12:10]} Bxd4 {[%clk 00:21:47]} {[%emt
00:01:38]} 21. Rd1 {[%clk 00:41:33]} {[%emt 00:14:30]} Bxc3 {[%clk 00:21:10]}
{[%emt 00:01:06]} 22. Nxc3 {[%clk 00:41:54]} {[%emt 00:00:10]} Qe5 {[%clk
00:19:14]} {[%emt 00:02:25]} 23. Bxa8 {[%clk 00:41:18]} {[%emt 00:01:06]} Rxa8
{[%clk 00:19:40]} {[%emt 00:00:05]} 24. Rd5 {[%clk 00:40:58]} {[%emt 00:00:50]}
Qf6 {[%clk 00:19:35]} {[%emt 00:00:34]} 25. Rad1 {[%clk 00:37:48]} {[%emt
00:03:40]} Nc5 {[%clk 00:19:39]} {[%emt 00:00:27]} 26. Qb4 {[%clk 00:37:30]}
{[%emt 00:00:48]} Rad8 {[%clk 00:17:07]} {[%emt 00:03:01]} 27. Qd4 {[%clk
00:34:10]} {[%emt 00:03:51]} Qxd4 {[%clk 00:17:08]} {[%emt 00:00:29]} 28. R1xd4
{[%clk 00:34:29]} {[%emt 00:00:11]} Ne6 {[%clk 00:14:20]} {[%emt 00:03:19]} 29.
Rxd8 {[%clk 00:32:55]} {[%emt 00:02:03]} Rxd8 {[%clk 00:14:48]} {[%emt
00:00:02]} 30. Rxd8+ {[%clk 00:33:16]} {[%emt 00:00:09]} Nxd8 {[%clk 00:15:16]}
{[%emt 00:00:02]} 31. Kf1 {[%clk 00:33:23]} {[%emt 00:00:22]} Kf8 {[%clk
00:15:28]} {[%emt 00:00:18]} 32. Ke2 {[%clk 00:33:26]} {[%emt 00:00:27]} Ke7
{[%clk 00:15:23]} {[%emt 00:00:35]} 33. Kd3 {[%emt 00:00:46]} Kd7 {[%clk
00:14:11]} {[%emt 00:01:20]} 34. Kc4 {[%clk 00:32:43]} {[%emt 00:01:19]} Ne6
{[%clk 00:12:59]} {[%emt 00:01:42]} 35. e4 {[%clk 00:25:21]} {[%emt 00:07:53]}
Kc6 {[%clk 00:12:05]} {[%emt 00:01:22]} 36. Nd5 {[%clk 00:25:07]} {[%emt
00:00:46]} b5+ {[%clk 00:07:28]} {[%emt 00:05:07]} 37. Kb4 {[%clk 00:24:40]}
{[%emt 00:00:57]} Nd4 {[%clk 00:03:26]} {[%emt 00:04:33]} 38. h4 {[%clk
00:22:23]} {[%emt 00:02:46]} Nc2+ {[%clk 00:02:59]} {[%emt 00:00:56]} 39. Kc3
{[%clk 00:22:21]} {[%emt 00:00:33]} Na3 {[%clk 00:02:59]} {[%emt 00:00:29]} 40.
Ne3 {[%clk 00:20:39]} {[%emt 00:02:13]} a5 {[%clk 00:01:53]} {[%emt 00:01:36]}
41. h5 {[%clk 00:20:26]} {[%emt 00:00:42]} b4+ {[%clk 00:01:58]} {[%emt
00:00:26]} 42. Kb3 {[%clk 00:18:53]} {[%emt 00:02:02]} Kb5 {[%clk 00:02:15]}
{[%emt 00:00:14]} 43. Nf5 {[%clk 00:18:45]} {[%emt 00:00:37]} a4+ {[%clk
00:02:30]} {[%emt 00:00:15]} 44. Kb2 {[%clk 00:19:11]} {[%emt 00:00:05]} Nc4+
{[%clk 00:02:56]} {[%emt 00:00:04]} 45. Kc2 {[%clk 00:19:11]} {[%emt 00:00:30]}
g6 {[%clk 00:02:36]} {[%emt 00:00:50]} 46. hxg6 {[%clk 00:18:56]} {[%emt
00:00:45]} fxg6 {[%emt 00:02:38]} 47. Nd4+ {[%clk 00:17:20]} {[%emt 00:01:08]}
Kc5 {[%clk 00:01:51]} {[%emt 00:00:04]} 48. Ne6+ {[%clk 00:16:28]} {[%emt
00:01:23]} Kd6 {[%clk 00:01:46]} {[%emt 00:00:34]} 49. Nf8 {[%clk 00:15:32]}
{[%emt 00:01:27]} Ke5 {[%clk 00:02:08]} {[%emt 00:00:07]} 50. Nxh7 {[%clk
00:15:38]} {[%emt 00:00:25]} Kxe4 {[%clk 00:02:28]} {[%emt 00:00:10]} 51. Nf8
{[%clk 00:15:56]} {[%emt 00:00:12]} Na3+ {[%clk 00:02:15]} {[%emt 00:00:43]} 52.
Kc1 {[%clk 00:15:53]} {[%emt 00:00:33]} Kf5 {[%clk 00:01:19]} {[%emt 00:01:26]}
53. Nd7 {[%clk 00:16:09]} {[%emt 00:00:14]} Nc4 {[%clk 00:01:23]} {[%emt
00:00:25]} 54. Nc5 {[%clk 00:16:19]} {[%emt 00:00:21]} Nb6 {[%clk 00:01:06]}
{[%emt 00:00:46]} 55. Kc2 {[%clk 00:16:40]} {[%emt 00:00:10]} g5 {[%clk
00:01:18]} {[%emt 00:00:18]} 56. Kd3 {[%clk 00:16:03]} {[%emt 00:01:07]} g4
{[%clk 00:01:04]} {[%emt 00:00:43]} 57. Kd4 {[%clk 00:15:23]} {[%emt 00:01:10]}
b3 {[%clk 00:00:34]} {[%emt 00:01:00]} 58. axb3 {[%clk 00:15:40]} {[%emt
00:00:13]} axb3 {[%clk 00:00:55]} {[%emt 00:00:10]} 59. Nxb3 {[%clk 00:16:04]}
{[%emt 00:00:06]} Nd7 {[%clk 00:00:38]} {[%emt 00:00:47]} 60. g3 {[%clk
00:14:04]} {[%emt 00:02:30]} Ne5 {[%clk 00:00:52]} {[%emt 00:00:15]} 61. Nd2
{[%clk 00:14:11]} {[%emt 00:00:22]} Nc6+ {[%clk 00:01:02]} {[%emt 00:00:21]} 62.
Kd5 {[%clk 00:14:19]} {[%emt 00:00:22]} Ne5 {[%clk 00:01:19]} {[%emt 00:00:12]}
63. Nf1 {[%clk 00:13:29]} {[%emt 00:01:21]} Nd3 {[%clk 00:01:09]} {[%emt
00:00:41]} 64. Ne3 {[%clk 00:13:53]} {[%emt 00:00:05]} Kg5 {[%clk 00:01:33]}
{[%emt 00:00:05]} 65. Nd1 {[%clk 00:14:16]} {[%emt 00:00:08]} Nb4+ {[%clk
00:01:00]} {[%emt 00:01:03]} 66. Ke4 {[%clk 00:14:14]} {[%emt 00:00:31]} Na6
{[%clk 00:01:27]} {[%emt 00:00:04]} 67. Nc3 {[%clk 00:13:53]} {[%emt 00:00:51]}
Nc5+ {[%clk 00:01:54]} {[%emt 00:00:03]} 68. Kd4 {[%clk 00:14:16]} {[%emt
00:00:08]} Nd7 {[%clk 00:01:52]} {[%emt 00:00:31]} 69. Ne4+ {[%clk 00:12:41]}
{[%emt 00:02:05]} Kf5 {[%clk 00:02:04]} {[%emt 00:00:16]} 70. Nd6+ {[%clk
00:13:05]} {[%emt 00:00:08]} Kg5 {[%clk 00:02:22]} {[%emt 00:00:12]} 71. Kd5
{[%clk 00:13:08]} {[%emt 00:00:28]} Nf8 {[%clk 00:02:10]} {[%emt 00:00:38]} 72.
Ke4 {[%clk 00:11:14]} {[%emt 00:02:27]} Nd7 {[%clk 00:01:48]} {[%emt 00:00:51]}
73. Nf7+ {[%clk 00:11:05]} {[%emt 00:00:41]} Kf6 {[%clk 00:02:05]} {[%emt
00:00:10]} 74. Nd8 {[%clk 00:10:08]} {[%emt 00:01:30]} Kg5 {[%clk 00:01:44]}
{[%emt 00:00:51]} 75. Ne6+ {[%clk 00:10:17]} {[%emt 00:00:21]} Kf6 {[%clk
00:02:07]} {[%emt 00:00:06]} 76. Kf4 {[%clk 00:08:35]} {[%emt 00:02:12]} Kxe6
{[%clk 00:02:31]} {[%emt 00:00:06]} 77. Kxg4 {[%clk 00:09:01]} {[%emt
00:00:05]} Nf6+ {[%clk 00:02:32]} {[%emt 00:00:29]} 78. Kf4 {[%clk 00:09:21]}
{[%emt 00:00:09]} Nh5+ {[%clk 00:02:27]} {[%emt 00:00:36]} 79. Kg5 {[%clk
00:09:40]} {[%emt 00:00:09]} Nf6 {[%clk 00:00:58]} {[%emt 00:02:00]} 80. f3
{[%clk 00:10:03]} {[%emt 00:00:07]} Kf7 {[%clk 00:01:19]} {[%emt 00:00:09]} 81.
Kf5 {[%clk 00:10:18]} {[%emt 00:00:15]} Nh5 {[%clk 00:01:16]} {[%emt 00:00:34]}
82. g4 {[%clk 00:10:40]} {[%emt 00:00:08]} Ng7+ {[%clk 00:01:40]} {[%emt
00:00:06]} 83. Kg5 {[%clk 00:10:19]} {[%emt 00:00:50]} Ne6+ {[%clk 00:02:04]}
{[%emt 00:00:06]} 84. Kh5 {[%clk 00:09:24]} {[%emt 00:01:25]} Kf6 {[%clk
00:01:38]} {[%emt 00:00:57]} 85. Kh6 {[%clk 00:09:40]} {[%emt 00:00:13]} Ke5
{[%clk 00:01:18]} {[%emt 00:00:50]} 86. g5 {[%clk 00:09:05]} {[%emt 00:01:05]}
Kf4 {[%clk 00:01:36]} {[%emt 00:00:12]} 87. g6 {[%clk 00:09:30]} {[%emt
00:00:05]} Kxf3 {[%clk 00:02:01]} {[%emt 00:00:04]} 88. g7 {[%clk 00:09:56]}
{[%emt 00:00:05]} Nxg7 {[%clk 00:02:30]} {[%emt 00:00:01]} 1/2-1/2